bitfinex/quotes_BTCUSD_20250718
["timestamp","ask_amount","ask_price","bid_price","bid_amount"]
[1752817302545,0.60158542,120490.0,120480.0,0.38961608]
[1752817303289,0.30086887,120490.0,120480.0,0.38961608]
[1752817303866,0.46670542,120490.0,120480.0,0.38961608]
[1752817304072,0.60166542,120490.0,120480.0,0.38961608]
[1752817304283,0.30094887,120490.0,120480.0,0.38961608]
[1752817304429,0.60166542,120490.0,120480.0,0.38961608]
[1752817305516,0.6013351,120490.0,120480.0,0.38961608]
[1752817305949,0.6013351,120490.0,120480.0,0.04653608]
[1752817306478,0.30061855,120490.0,120480.0,0.04653608]
[1752817306680,0.6013351,120490.0,120480.0,0.04653608]
[1752817308487,0.6013351,120490.0,120480.0,0.03033608]
[1752817308695,0.6167351,120490.0,120480.0,0.03033608]
[1752817309229,0.6013351,120490.0,120480.0,0.03033608]
[1752817310650,0.4663751,120490.0,120480.0,0.03033608]
[1752817310872,0.6010551,120490.0,120480.0,0.03033608]
[1752817311816,0.30033855,120490.0,120480.0,0.03033608]
[1752817312016,0.4663751,120490.0,120480.0,0.03033608]
[1752817312220,0.6010151,120490.0,120480.0,0.03033608]
[1752817312864,0.6010151,120490.0,120480.0,0.04633608]
[1752817313206,0.30029855,120490.0,120480.0,0.04633608]
[1752817313411,0.6010151,120490.0,120480.0,0.04633608]
[1752817314331,0.6010151,120490.0,120480.0,0.03033608]
[1752817315417,0.4663751,120490.0,120480.0,0.03033608]
[1752817315541,0.6008151,120490.0,120480.0,0.03033608]
[1752817316807,0.6008151,120490.0,120480.0,0.04603608]
[1752817317238,0.30009855,120490.0,120480.0,0.04603608]
[1752817317443,0.6008151,120490.0,120480.0,0.04603608]
[1752817317834,0.6008151,120490.0,120480.0,0.22352886]
[1752817317994,0.30009855,120490.0,120480.0,0.23182892]
[1752817318190,0.6008151,120490.0,120480.0,0.23182892]
[1752817318404,0.6008151,120490.0,120480.0,0.22352886]
[1752817318972,0.63838245,120490.0,120480.0,0.22352886]
[1752817319404,0.63838245,120490.0,120480.0,0.23182892]
[1752817319558,0.63838245,120490.0,120480.0,0.22352886]
[1752817320100,0.30009855,120490.0,120480.0,0.22352886]
[1752817320356,0.63838245,120490.0,120480.0,0.05752621]
[1752817320755,0.63838245,120490.0,120480.0,0.22352886]
[1752817321291,0.63838245,120490.0,120480.0,0.23182892]
[1752817321512,0.63838245,120490.0,120480.0,0.22352886]
[1752817321741,0.63838245,120490.0,120480.0,0.04922608]
[1752817322369,0.63838245,120490.0,120480.0,0.03033608]
[1752817322903,0.30009855,120490.0,120480.0,0.03033608]
[1752817323112,0.63838245,120490.0,120480.0,0.03033608]
[1752817323739,0.30009855,120490.0,120480.0,0.03033608]
[1752817323943,0.63838245,120490.0,120480.0,0.03033608]
[1752817324174,0.63838245,120490.0,120480.0,0.04623608]
[1752817325273,0.63838245,120490.0,120480.0,0.04942608]
[1752817326973,0.58945273,120490.0,120480.0,0.03033608]
[1752817327186,1.35937951,120490.0,120480.0,0.03033608]
[1752817327391,1.50903951,120490.0,120480.0,0.03033608]
[1752817328576,1.17075561,120490.0,120480.0,0.03033608]
[1752817330196,1.07991273,120490.0,120480.0,0.03033608]
[1752817330617,1.09445358,120490.0,120480.0,0.03033608]
[1752817332169,1.07991273,120490.0,120480.0,0.03033608]
[1752817333008,0.74162883,120490.0,120480.0,0.03033608]
[1752817333222,1.07991273,120490.0,120480.0,0.03033608]
[1752817333426,1.16567235,120490.0,120480.0,0.03033608]
[1752817334287,1.1802132,120490.0,120480.0,0.03033608]
[1752817334957,1.5184971,120490.0,120480.0,0.03033608]
[1752817336207,1.09445358,120490.0,120480.0,0.03033608]
[1752817337167,0.75616968,120490.0,120480.0,0.03033608]
[1752817337370,1.09445358,120490.0,120480.0,0.03033608]
[1752817337799,0.75616968,120490.0,120480.0,0.03033608]
[1752817338007,1.09445358,120490.0,120480.0,0.03033608]
[1752817338438,1.1802132,120490.0,120480.0,0.03033608]
[1752817338805,1.09445358,120490.0,120480.0,0.03033608]
[1752817339240,1.07835358,120490.0,120480.0,0.03033608]
[1752817339942,0.74006968,120490.0,120480.0,0.03033608]
[1752817340290,1.07835358,120490.0,120480.0,0.03033608]
[1752817341514,1.07835358,120490.0,120480.0,0.04543608]
[1752817342300,1.1641132,120490.0,120480.0,0.04543608]
[1752817342954,1.07835358,120490.0,120480.0,0.04543608]
[1752817343310,1.07835358,120490.0,120480.0,0.03033608]
[1752817343523,0.74006968,120490.0,120480.0,0.03033608]
[1752817343737,0.74006968,120490.0,120480.0,0.04985608]
[1752817343945,1.07835358,120490.0,120480.0,0.04985608]
[1752817344508,1.07835358,120490.0,120480.0,0.04683608]
[1752817346176,0.74006968,120490.0,120480.0,0.04683608]
[1752817346434,1.07835358,120490.0,120480.0,0.04683608]
[1752817348322,0.74006968,120490.0,120480.0,0.04683608]
[1752817348533,1.07835358,120490.0,120480.0,0.04683608]
[1752817350684,1.1641132,120490.0,120480.0,0.04683608]
[1752817352184,1.07835358,120490.0,120480.0,0.04683608]
[1752817352908,0.74006968,120490.0,120480.0,0.04683608]
[1752817353085,1.07835358,120490.0,120480.0,0.04985608]
[1752817353544,1.07835358,120490.0,120480.0,0.06525608]
[1752817353769,0.74006968,120490.0,120480.0,0.06525608]
[1752817353986,1.07835358,120490.0,120480.0,0.06525608]
[1752817354636,0.8258293,120490.0,120480.0,0.06525608]
[1752817354858,1.07835358,120490.0,120480.0,0.06525608]
[1752817356878,1.07835358,120490.0,120480.0,0.04985608]
[1752817357708,1.41663748,120490.0,120480.0,0.04985608]
[1752817357925,1.07835358,120490.0,120480.0,0.06515608]
[1752817361298,1.07835358,120490.0,120480.0,0.06722608]
[1752817361565,1.06381273,120490.0,120480.0,0.06722608]
[1752817361765,1.06369273,120490.0,120480.0,0.06722608]
[1752817362073,1.08874354,120490.0,120480.0,0.06722608]
[1752817364758,0.86899326,120490.0,120480.0,0.06722608]
[1752817364967,1.00323326,120490.0,120480.0,0.06722608]
[1752817365530,0.66494936,120490.0,120480.0,0.23322873]
[1752817365776,0.03334997,120490.0,120480.0,0.310553]
[1752817365995,0.03334977,120490.0,120480.0,0.310553]
[1752817366262,0.03319652,120490.0,120480.0,0.310553]
[1752817366467,0.03319652,120490.0,120480.0,0.26642828]
[1752817366653,0.37148042,120490.0,120480.0,0.26642828]
[1752817366860,0.37977979,120490.0,120480.0,0.26642828]
[1752817367070,0.5374697,120490.0,120480.0,0.25812863]
[1752817367282,0.5374697,120490.0,120480.0,0.26642841]
[1752817367493,0.5374697,120490.0,120480.0,0.27472812]
[1752817367699,0.37148083,120490.0,120480.0,0.27472812]
[1752817368540,0.37118083,120490.0,120480.0,0.27472764]
[1752817368832,0.36288146,120490.0,120480.0,0.27472764]
[1752817369354,0.37118083,120490.0,120480.0,0.27472764]
[1752817369486,0.36288146,120490.0,120480.0,0.27472764]
[1752817369686,0.02459756,120490.0,120480.0,0.27472764]
[1752817369882,0.01629826,120490.0,120480.0,0.27472764]
[1752817370110,0.02489708,120490.0,120480.0,0.36048726]
[1752817370349,0.36318098,120490.0,120480.0,0.36048726]
[1752817370556,0.02489708,120490.0,120480.0,0.36048726]
[1752817370763,0.03319638,120490.0,120480.0,0.27472764]
[1752817371205,0.20748524,120490.0,120480.0,0.27472764]
[1752817371565,0.54576914,120490.0,120480.0,0.27472764]
[1752817372180,0.37978027,120490.0,120480.0,0.27472764]
[1752817373026,0.36318146,120490.0,120480.0,0.27472764]
[1752817373381,0.37148083,120490.0,120480.0,0.27472764]
[1752817373541,0.03319693,120490.0,120480.0,0.27472764]
[1752817373749,0.37148083,120490.0,120480.0,0.27472764]
[1752817374739,0.01659826,120490.0,120480.0,0.27472764]
[1752817374944,0.03319624,120490.0,120480.0,0.27472764]
[1752817375357,0.37148014,120490.0,120480.0,0.27472764]
[1752817375846,0.37977951,120490.0,120480.0,0.27472764]
[1752817376287,0.02489694,120490.0,120480.0,0.27472764]
[1752817376502,0.52087116,120490.0,120480.0,0.20134608]
[1752817376715,0.18258726,120490.0,120480.0,0.06722608]
[1752817376913,0.52087116,120490.0,120480.0,0.06722608]
[1752817377637,0.18258726,120490.0,120480.0,0.06722608]
[1752817377873,0.52087116,120490.0,120480.0,0.24152886]
[1752817378074,0.16598887,120490.0,120480.0,0.06722608]
[1752817378287,0.16598887,120490.0,120480.0,0.04985608]
[1752817378494,0.50427277,120490.0,120480.0,0.04985608]
[1752817378730,0.50427277,120490.0,120480.0,0.04683608]
[1752817378901,0.63839277,120490.0,120480.0,0.04683608]
[1752817379632,0.72309081,120490.0,120480.0,0.03033608]
[1752817380051,1.06137471,120490.0,120480.0,0.03033608]
[1752817380708,0.97839277,120490.0,120480.0,0.03033608]
[1752817381133,0.97839277,120490.0,120480.0,0.04603608]
[1752817382216,0.50598887,120490.0,120480.0,0.04603608]
[1752817382433,0.84427277,120490.0,120480.0,0.04901608]
[1752817382880,0.64010887,120490.0,120480.0,0.04901608]
[1752817383480,0.97839277,120490.0,120480.0,0.04901608]
[1752817384099,0.64010887,120490.0,120480.0,0.04901608]
[1752817384522,0.97839277,120490.0,120480.0,0.04901608]
[1752817384734,0.64010887,120490.0,120480.0,0.04901608]
[1752817385245,0.97839277,120490.0,120480.0,0.04901608]
[1752817385953,0.64010887,120490.0,120480.0,0.04901608]
[1752817386156,0.97839277,120490.0,120480.0,0.04901608]
[1752817387236,0.72586849,120490.0,120480.0,0.04901608]
[1752817387439,0.50598887,120490.0,120480.0,0.04901608]
[1752817387639,0.97835277,120490.0,120480.0,0.04901608]
[1752817388880,0.64006887,120490.0,120480.0,0.04901608]
[1752817389130,0.97835277,120490.0,120480.0,0.06531608]
[1752817389438,0.64006887,120490.0,120480.0,0.06531608]
[1752817389641,0.97835277,120490.0,120480.0,0.06531608]
[1752817389848,0.64006887,120490.0,120480.0,0.06531608]
[1752817390051,0.97835277,120490.0,120480.0,0.06531608]
[1752817391085,1.06411239,120490.0,120480.0,0.06531608]
[1752817392370,0.64006887,120490.0,120480.0,0.06744608]
[1752817392563,0.97835277,120490.0,120480.0,0.06744608]
[1752817397025,0.64006887,120490.0,120480.0,0.06744608]
[1752817397565,0.97835277,120490.0,120480.0,0.06744608]
[1752817398426,0.64006887,120490.0,120480.0,0.06744608]
[1752817398641,0.97835277,120490.0,120480.0,0.06744608]
[1752817399973,0.84427277,120490.0,120480.0,0.06531608]
[1752817400192,0.97835277,120490.0,120480.0,0.04901608]
[1752817400433,0.64006887,120490.0,120480.0,0.06471608]
[1752817400651,0.84427277,120490.0,120480.0,0.06471608]
[1752817400799,0.97835277,120490.0,120480.0,0.06471608]
[1752817401001,1.35382657,120490.0,120480.0,0.03033608]
[1752817401213,1.28406695,120490.0,120480.0,0.03033608]
[1752817401419,1.41814695,120490.0,120480.0,0.03033608]
[1752817401762,1.07986305,120490.0,120480.0,0.03033608]
[1752817402091,1.0944039,120490.0,120480.0,0.03033608]
[1752817402725,1.4326878,120490.0,120480.0,0.03033608]
[1752817403132,1.51844742,120490.0,120480.0,0.03033608]
[1752817408065,1.4326878,120490.0,120480.0,0.03033608]
[1752817408239,1.2986078,120490.0,120480.0,0.03033608]
[1752817408457,1.4326878,120490.0,120480.0,0.03033608]
[1752817408667,0.77152,120490.0,120480.0,0.03033608]
[1752817408869,1.4480878,120490.0,120480.0,0.03033608]
[1752817409339,1.53384742,120490.0,120480.0,0.03033608]
[1752817410178,1.53384742,120490.0,120480.0,0.02203361]
[1752817410409,0.85727962,120490.0,120480.0,0.02203361]
[1752817410633,1.53384742,120490.0,120480.0,0.01373114]
[1752817411038,1.53384742,120490.0,120480.0,0.00542867]
[1752817411507,0.51430264,120480.0,120470.0,0.01679954]
[1752817411720,1.49622034,120480.0,120470.0,0.01679954]
[1752817412716,1.49722034,120480.0,120470.0,0.01679954]
[1752817413790,1.49822034,120480.0,120470.0,0.01679954]
[1752817414964,1.41246072,120480.0,120470.0,0.01679954]
[1752817415173,1.42700157,120480.0,120470.0,0.01679954]
[1752817415509,0.73589292,120480.0,120470.0,0.01679954]
[1752817415714,1.41246072,120480.0,120470.0,0.01679954]
[1752817415938,0.73589292,120480.0,120470.0,0.01679954]
[1752817416127,1.07417682,120480.0,120470.0,0.01679954]
[1752817416439,1.15993644,120480.0,120470.0,0.01679954]
[1752817417144,1.15989644,120480.0,120470.0,0.01679954]
[1752817418888,1.07413682,120480.0,120470.0,0.01679954]
[1752817419095,0.94009682,120480.0,120470.0,0.01972954]
[1752817419307,1.07413682,120480.0,120470.0,0.01972954]
[1752817419583,1.07413682,120480.0,120470.0,0.03602954]
[1752817419797,1.07413682,120480.0,120470.0,0.03804954]
[1752817420208,1.15989644,120480.0,120470.0,0.03804954]
[1752817421252,1.02585644,120480.0,120470.0,0.03804954]
[1752817421462,1.15989644,120480.0,120470.0,0.03804954]
[1752817422267,0.48161254,120480.0,120470.0,0.03804954]
[1752817422484,0.81989644,120480.0,120470.0,0.03804954]
[1752817422804,0.48161254,120480.0,120470.0,0.03804954]
[1752817423030,0.73413682,120480.0,120470.0,0.03804954]
[1752817423940,0.39585292,120480.0,120470.0,0.03804954]
[1752817424583,1.07413682,120480.0,120470.0,0.03804954]
[1752817425014,0.73585292,120480.0,120470.0,0.03804954]
[1752817425233,1.07413682,120480.0,120470.0,0.03804954]
[1752817425449,0.73585292,120480.0,120470.0,0.03804954]
[1752817425671,1.07413682,120480.0,120470.0,0.03804954]
[1752817426401,0.73585292,120480.0,120470.0,0.03804954]
[1752817426843,1.07413682,120480.0,120470.0,0.03804954]
[1752817427051,0.73585292,120480.0,120470.0,0.03804954]
[1752817428123,1.07413682,120480.0,120470.0,0.03804954]
[1752817428837,1.18488827,120480.0,120470.0,0.01972954]
[1752817429063,1.18488827,120480.0,120470.0,0.01679954]
[1752817429861,0.84660437,120480.0,120470.0,0.01679954]
[1752817430076,1.18488827,120480.0,120470.0,0.01679954]
[1752817432022,0.84660437,120480.0,120470.0,0.01679954]
[1752817433776,0.76084475,120480.0,120470.0,0.01679954]
[1752817436179,0.76080475,120480.0,120470.0,0.01679954]
[1752817436815,0.66080475,120480.0,120470.0,0.01679954]
[1752817437031,0.66910474,120480.0,120470.0,0.01679954]
[1752817438810,1.00738864,120480.0,120470.0,0.01679954]
[1752817439690,0.66910474,120480.0,120470.0,0.01679954]
[1752817439843,1.00738864,120480.0,120470.0,0.01679954]
[1752817440520,1.09314826,120480.0,120470.0,0.01679954]
[1752817441635,0.75486436,120480.0,120470.0,0.01679954]
[1752817442075,1.09314826,120480.0,120470.0,0.01679954]
[1752817442625,6.09314826,120480.0,120470.0,0.00049954]
[1752817443439,5.75486436,120480.0,120470.0,0.00049954]
[1752817443734,6.09314826,120480.0,120470.0,0.00049954]
[1752817443906,5.75486436,120480.0,120470.0,0.00049954]
[1752817444120,1.00738864,120480.0,120470.0,0.01589954]
[1752817444446,6.00738864,120480.0,120470.0,0.01589954]
[1752817444788,5.66910474,120480.0,120470.0,0.01892954]
[1752817445014,5.66910474,120480.0,120470.0,0.03432954]
[1752817446203,6.00738864,120480.0,120470.0,0.03637954]
[1752817446823,5.66906474,120480.0,120470.0,0.03637954]
[1752817447037,6.00734864,120480.0,120470.0,0.03637954]
[1752817447672,5.66906474,120480.0,120470.0,0.03637954]
[1752817447901,6.00734864,120480.0,120470.0,0.03637954]
[1752817448510,6.00734864,120480.0,120470.0,0.03432954]
[1752817449123,5.66906474,120480.0,120470.0,0.03432954]
[1752817449326,6.00734864,120480.0,120470.0,0.03432954]
[1752817452381,6.00734864,120480.0,120470.0,0.03637954]
[1752817452827,5.66906474,120480.0,120470.0,0.03637954]
[1752817453049,0.54340466,120480.0,120470.0,0.54067987]
[1752817453269,0.67736466,120480.0,120470.0,0.54898062]
[1752817453738,0.67736466,120480.0,120470.0,0.54067987]
[1752817453975,0.67736466,120480.0,120470.0,0.54898069]
[1752817454195,0.67736466,120480.0,120470.0,0.55728144]
[1752817454399,0.66906474,120480.0,120470.0,0.54898069]
[1752817454609,0.66076475,120480.0,120470.0,0.54898069]
[1752817454817,0.52680475,120480.0,120470.0,0.54898069]
[1752817455028,0.66076475,120480.0,120470.0,0.54898069]
[1752817455228,0.66076475,120480.0,120470.0,0.55728144]
[1752817455443,0.66076475,120480.0,120470.0,0.54067987]
[1752817455645,0.66076475,120480.0,120470.0,0.54898062]
[1752817456194,0.66076475,120480.0,120470.0,0.37466344]
[1752817456418,0.66076475,120480.0,120470.0,0.54898069]
[1752817456628,0.66076475,120480.0,120470.0,0.38296426]
[1752817456945,0.66076475,120480.0,120470.0,0.37466344]
[1752817457363,0.66076475,120480.0,120470.0,0.03637954]
[1752817457574,0.66076475,120480.0,120470.0,0.37466344]
[1752817458235,0.66076475,120480.0,120470.0,0.03637954]
[1752817459751,0.52680475,120480.0,120470.0,0.03637954]
[1752817459974,0.66072475,120480.0,120470.0,0.03637954]
[1752817461571,0.66072475,120480.0,120460.0,0.0004]
[1752817461572,0.51431711,120470.0,120460.0,0.0004]
[1752817461790,5.76524739,120470.0,120460.0,0.0004]
[1752817462023,6.20629938,120460.0,120450.0,0.0004]
[1752817462248,0.00830392,120420.0,120410.0,0.0004]
[1752817462471,0.18269341,120420.0,120410.0,0.01757]
[1752817462922,0.18269341,120420.0,120410.0,0.03569]
[1752817463485,0.31666328,120420.0,120410.0,0.03569]
[1752817463887,0.31666328,120420.0,120410.0,0.03769]
[1752817464102,0.31666328,120420.0,120410.0,0.03569]
[1752817464550,0.31666328,120420.0,120410.0,0.03669]
[1752817465114,0.31666328,120420.0,120410.0,0.03569]
[1752817465367,0.35401318,120420.0,120410.0,0.03569]
[1752817465567,0.48793318,120420.0,120410.0,0.03569]
[1752817465772,0.82793318,120420.0,120410.0,0.03569]
[1752817465971,1.13725887,120420.0,120410.0,0.03569]
[1752817466693,1.05149925,120420.0,120410.0,0.03569]
[1752817469383,0.750471,120420.0,120410.0,0.03569]
[1752817476235,1.05149925,120420.0,120410.0,0.03569]
[1752817476592,0.750471,120420.0,120410.0,0.03569]
[1752817476811,1.05149925,120420.0,120410.0,0.03569]
[1752817478408,0.750471,120420.0,120410.0,0.03569]
[1752817478626,1.05149925,120420.0,120410.0,0.03569]
[1752817478850,0.750471,120420.0,120410.0,0.03569]
[1752817479062,1.05149925,120420.0,120410.0,0.03569]
[1752817482178,0.91757925,120420.0,120410.0,0.03569]
[1752817482389,1.05145925,120420.0,120410.0,0.03569]
[1752817483500,0.91757925,120420.0,120410.0,0.03569]
[1752817483718,1.05145925,120420.0,120410.0,0.03569]
[1752817484786,1.13721887,120420.0,120410.0,0.03569]
[1752817484991,1.13721887,120420.0,120410.0,0.0155]
[1752817485194,1.05145925,120420.0,120410.0,0.0155]
[1752817485627,0.750431,120420.0,120410.0,0.01852]
[1752817485978,1.05145925,120420.0,120410.0,0.03402]
[1752817486468,1.05141925,120420.0,120410.0,0.01852]
[1752817486739,1.05141925,120420.0,120410.0,0.0155]
[1752817486952,1.05241925,120420.0,120410.0,0.0155]
[1752817487356,1.04412181,120420.0,120410.0,0.0155]
[1752817488589,1.04512181,120420.0,120410.0,0.0155]
[1752817488943,1.04512181,120420.0,120410.0,0.0004]
[1752817489813,1.04512181,120420.0,120410.0,0.0166]
[1752817489989,1.04512181,120420.0,120410.0,0.033]
[1752817490379,1.04512181,120420.0,120410.0,0.0166]
[1752817490380,1.13088143,120420.0,120410.0,0.0166]
[1752817491075,0.99704143,120420.0,120410.0,0.0004]
[1752817491289,6.13088143,120420.0,120410.0,0.0004]
[1752817491712,6.15622633,120420.0,120410.0,0.0162]
[1752817492058,6.16445345,120420.0,120410.0,0.0162]
[1752817492277,6.03061345,120420.0,120410.0,0.0162]
[1752817492480,6.16445345,120420.0,120410.0,0.0162]
[1752817492708,1.16445345,120420.0,120410.0,0.0328]
[1752817492927,6.16445345,120420.0,120410.0,0.03581]
[1752817493138,6.16441345,120420.0,120410.0,0.03782]
[1752817493333,6.07865383,120420.0,120410.0,0.01921]
[1752817493565,6.07865383,120420.0,120410.0,0.0162]
[1752817494281,6.07865383,120420.0,120410.0,0.03481]
[1752817494485,6.16441345,120420.0,120410.0,0.01921]
[1752817495096,6.16441345,120420.0,120410.0,0.03481]
[1752817495097,6.54088778,120420.0,120410.0,0.03481]
[1752817495347,6.45512816,120420.0,120410.0,0.03481]
[1752817497749,6.45512816,120420.0,120410.0,0.0162]
[1752817498239,6.45516816,120420.0,120410.0,0.0162]
[1752817501158,6.11641687,120420.0,120410.0,0.0162]
[1752817501388,6.45516816,120420.0,120410.0,0.0162]
[1752817501605,6.40712778,120420.0,120410.0,0.0162]
[1752817501819,6.54088778,120420.0,120410.0,0.0162]
[1752817503402,6.45512816,120420.0,120410.0,0.0162]
[1752817503583,6.45512816,120420.0,120410.0,0.01921]
[1752817504804,1.45512816,120420.0,120410.0,0.0162]
[1752817505357,6.45512816,120420.0,120410.0,0.0162]
[1752817505767,5.77762558,120420.0,120410.0,0.0162]
[1752817505989,6.45512816,120420.0,120410.0,0.0162]
[1752817506193,5.64386558,120420.0,120410.0,0.01921]
[1752817506394,6.45508816,120420.0,120410.0,0.03501]
[1752817506808,5.77758558,120420.0,120410.0,0.03501]
[1752817507015,6.45508816,120420.0,120410.0,0.03501]
[1752817507648,6.32136816,120420.0,120410.0,0.03702]
[1752817507864,6.45508816,120420.0,120410.0,0.03702]
[1752817510239,5.77758558,120420.0,120410.0,0.03702]
[1752817510451,6.45508816,120420.0,120410.0,0.03702]
[1752817511107,6.45508816,120420.0,120410.0,0.20311916]
[1752817511322,6.44678424,120420.0,120410.0,0.20311916]
[1752817511535,6.44678424,120420.0,120410.0,0.03702]
[1752817512721,6.44678424,120420.0,120410.0,0.20311916]
[1752817513177,6.44678424,120420.0,120410.0,0.21142411]
[1752817513401,6.44678424,120420.0,120410.0,0.03702]
[1752817514514,6.53254386,120420.0,120410.0,0.03702]
[1752817514951,5.85504128,120420.0,120410.0,0.03702]
[1752817515150,0.76928166,120420.0,120410.0,0.03702]
[1752817515387,1.44678424,120420.0,120410.0,0.03702]
[1752817518285,0.76928166,120420.0,120410.0,0.03702]
[1752817518501,0.40057365,120420.0,120410.0,0.56678448]
[1752817518755,0.19421358,120420.0,120410.0,0.31379281]
[1752817518975,0.20251771,120420.0,120410.0,0.31379281]
[1752817519196,0.05226945,120420.0,120410.0,0.31379281]
[1752817519416,0.0688775,120420.0,120410.0,0.22803319]
[1752817519630,0.23496286,120420.0,120410.0,0.21142404]
[1752817519840,0.2432676,120420.0,120410.0,0.23633794]
[1752817520048,0.06887798,120420.0,120410.0,0.23633794]
[1752817520260,0.18590945,120420.0,120410.0,0.24464241]
[1752817520471,0.06887729,120420.0,120410.0,0.24464241]
[1752817520690,0.20251729,120420.0,120410.0,0.24464241]
[1752817521157,0.06887729,120420.0,120410.0,0.24464241]
[1752817521369,0.06887729,120420.0,120410.0,0.37828241]
[1752817522403,0.03566189,120420.0,120410.0,0.37828241]
[1752817522672,0.0439656,120420.0,120410.0,0.37828241]
[1752817523091,0.05226945,120420.0,120410.0,0.37828241]
[1752817523747,0.05126938,120420.0,120410.0,0.37828241]
[1752817523961,0.00931699,120420.0,120410.0,0.76387137]
[1752817524405,0.00931699,120420.0,120410.0,0.74807137]
[1752817524589,0.00931699,120420.0,120410.0,0.4312628]
[1752817524726,0.01762063,120420.0,120410.0,0.2976228]
[1752817524964,0.02592448,120420.0,120410.0,0.34968241]
[1752817525252,0.02592441,120420.0,120410.0,0.34968241]
[1752817525719,0.01762063,120420.0,120410.0,0.34968241]
[1752817526540,0.00931699,120420.0,120410.0,0.34964241]
[1752817527905,0.00931699,120420.0,120410.0,0.21604241]
[1752817528127,0.00931699,120420.0,120410.0,0.4179988]
[1752817528363,0.00931699,120420.0,120410.0,0.67091765]
[1752817528571,0.00931699,120420.0,120410.0,0.80451765]
[1752817528823,0.00931699,120420.0,120410.0,0.67091765]
[1752817529025,0.00931699,120420.0,120410.0,0.80451765]
[1752817529529,0.00931699,120420.0,120410.0,0.73616126]
[1752817530750,0.00931699,120420.0,120410.0,0.43515269]
[1752817531066,0.00931699,120420.0,120410.0,0.73616126]
[1752817531648,0.00108987,120420.0,120410.0,0.73612126]
[1752817531875,0.00108987,120420.0,120410.0,0.43511269]
[1752817532078,0.00108987,120420.0,120410.0,0.49776885]
[1752817532286,0.00108987,120420.0,120410.0,0.79877742]
[1752817533182,0.00957868,120420.0,120410.0,0.79877742]
[1752817534493,0.00108987,120420.0,120410.0,0.79877742]
[1752817536210,0.00108987,120420.0,120410.0,0.49776885]
[1752817536437,0.00108987,120420.0,120410.0,0.79877742]
[1752817537765,0.00108987,120420.0,120410.0,0.79873742]
[1752817538478,0.00108987,120420.0,120410.0,0.38914185]
[1752817538687,0.00108987,120420.0,120410.0,0.52266185]
[1752817538908,0.00108987,120420.0,120410.0,0.69015042]
[1752817539112,0.00108987,120420.0,120410.0,0.82367042]
[1752817539731,0.00108987,120420.0,120410.0,0.69015042]
[1752817539950,0.00108987,120420.0,120410.0,0.82067042]
[1752817540193,0.00108987,120420.0,120410.0,0.82467042]
[1752817541119,0.00108987,120420.0,120410.0,0.69115042]
[1752817541328,0.00108987,120420.0,120410.0,0.82467042]
[1752817542862,0.00108987,120420.0,120410.0,0.69115042]
[1752817543097,0.00108987,120420.0,120410.0,0.82463042]
[1752817546617,0.00108987,120420.0,120410.0,0.86362185]
[1752817547107,0.00108987,120420.0,120410.0,1.16463042]
[1752817547301,0.00108987,120420.0,120410.0,1.16459042]
[1752817548620,1e-08,120420.0,120410.0,1.16459042]
[1752817550372,1e-08,120420.0,120410.0,1.03115042]
[1752817550581,1e-08,120420.0,120410.0,1.16459042]
[1752817551972,1e-08,120420.0,120410.0,1.45469042]
[1752817552432,1e-08,120420.0,120410.0,1.15768185]
[1752817553026,1e-08,120420.0,120410.0,1.45869042]
[1752817554928,1e-08,120420.0,120410.0,1.55861042]
[1752817556134,1e-08,120420.0,120410.0,1.55461042]
[1752817556442,1e-08,120420.0,120410.0,1.56061042]
[1752817556683,1e-08,120420.0,120410.0,1.42825042]
[1752817556837,1e-08,120420.0,120410.0,1.72925899]
[1752817557209,1e-08,120420.0,120410.0,1.86261899]
[1752817557338,1e-08,120420.0,120410.0,1.72925899]
[1752817557539,1e-08,120420.0,120410.0,1.86261899]
[1752817559378,1e-08,120420.0,120410.0,1.42825042]
[1752817559599,1e-08,120420.0,120410.0,1.56157042]
[1752817559802,1e-08,120420.0,120410.0,1.86257899]
[1752817561320,1e-08,120420.0,120410.0,1.86157899]
[1752817561848,1e-08,120420.0,120410.0,1.85557899]
[1752817562043,1e-08,120420.0,120410.0,1.72225899]
[1752817562255,1e-08,120420.0,120410.0,1.86357899]
[1752817562635,1e-08,120420.0,120410.0,1.86557899]
[1752817565791,1e-08,120420.0,120410.0,1.26356185]
[1752817565997,1e-08,120420.0,120410.0,1.89727899]
[1752817566408,1e-08,120440.0,120430.0,0.24098146]
[1752817566594,1e-08,120440.0,120430.0,1.14531772]
[1752817566904,1e-08,120440.0,120430.0,1.14854772]
[1752817567117,0.01560001,120440.0,120430.0,1.17347272]
[1752817567328,0.06643691,120450.0,120440.0,0.53096561]
[1752817567571,0.06643691,120450.0,120440.0,1.64795303]
[1752817567789,0.06643691,120450.0,120440.0,1.67638281]
[1752817568025,0.06643691,120450.0,120440.0,1.70130781]
[1752817568791,0.06643691,120450.0,120440.0,1.56806781]
[1752817568994,0.06643691,120450.0,120440.0,1.70130781]
[1752817569198,0.06643691,120450.0,120440.0,1.70530781]
[1752817569925,0.06743691,120450.0,120440.0,1.70530781]
[1752817570379,0.08103691,120450.0,120440.0,1.70530781]
[1752817571461,0.0146,120450.0,120440.0,1.70530781]
[1752817572276,0.0146,120450.0,120440.0,0.97005067]
[1752817572478,0.0146,120450.0,120440.0,1.40425924]
[1752817573153,0.0146,120450.0,120440.0,1.27105924]
[1752817573358,0.0146,120450.0,120440.0,1.40425924]
[1752817573706,0.0146,120450.0,120440.0,1.10325067]
[1752817573923,0.0146,120450.0,120440.0,1.40425924]
[1752817574544,0.0146,120450.0,120440.0,1.70526781]
[1752817576419,0.0146,120450.0,120440.0,1.41116781]
[1752817576820,0.0146,120450.0,120440.0,1.27796781]
[1752817577059,0.0146,120450.0,120440.0,1.41112781]
[1752817577484,0.0146,120450.0,120440.0,1.11011924]
[1752817580383,0.0146,120450.0,120440.0,0.64540089]
[1752817580608,0.0146,120450.0,120440.0,1.05460446]
[1752817581252,0.0146,120450.0,120440.0,1.05762446]
[1752817582821,0.0146,120450.0,120440.0,0.92645446]
[1752817583045,0.0146,120450.0,120440.0,1.05957446]
[1752817583283,0.0146,120450.0,120440.0,1.01221408]
[1752817583496,0.0146,120450.0,120440.0,1.14529408]
[1752817585976,0.0146,120450.0,120440.0,1.15372577]
[1752817586524,0.0146,120450.0,120440.0,0.76695758]
[1752817587135,0.0146,120450.0,120440.0,1.13909489]
[1752817589086,0.001,120450.0,120440.0,1.5111922]
[1752817589287,0.001,120450.0,120440.0,0.9975832]
[1752817589499,0.0146,120450.0,120440.0,1.1306232]
[1752817589827,0.0146,120450.0,120440.0,1.21638282]
[1752817590035,0.0146,120450.0,120440.0,1.58852013]
[1752817590255,0.0146,120450.0,120440.0,0.84424551]
[1752817590460,0.0146,120450.0,120440.0,0.70623551]
[1752817590692,0.0146,120450.0,120440.0,0.75653589]
[1752817590908,0.0146,120450.0,120440.0,1.1286732]
[1752817591319,0.0146,120450.0,120440.0,0.75653589]
[1752817591565,0.0146,120450.0,120440.0,1.1286732]